fUSD/lending_fUSD_20250322
["ID","MTS","AMOUNT","RATE_DAILY","PERIOD"]
[356527828,1742616651627,-500.0,0.00046575,120]
[356527829,1742616651637,-1365.26,0.00046575,120]
[356527830,1742616651646,-697.59,0.00046575,120]
[356527831,1742616651655,-500.0,0.00046575,120]
[356527832,1742616651664,-1239.61,0.00046575,120]
[356527833,1742616651674,-974.95,0.00046575,120]
[356527834,1742616651683,-500.0,0.00046575,120]
[356527835,1742616651693,-500.0,0.00046575,120]
[356527836,1742616651702,-500.0,0.00046575,120]
[356527837,1742616651712,-1279.68,0.00046575,120]
[356527838,1742616651722,-1899.46,0.00046575,120]
[356527839,1742616651733,-500.0,0.00046575,120]
[356527840,1742616651742,-500.0,0.00046575,120]
[356527841,1742616651752,-151.0,0.00046575,14]
[356527842,1742616651762,-300.2382,0.00046575,14]
[356527843,1742616651771,-557.25,0.00046575,120]
[356527844,1742616651780,-643.79,0.00046575,120]
[356527845,1742616651789,-500.0,0.00046575,120]
[356527846,1742616651798,-1427.44,0.00046575,120]
[356527847,1742616651808,-500.0,0.00046575,120]
[356527848,1742616651818,-671.32,0.00046575,120]
[356527849,1742616651827,-162.719588,0.00046575,14]
[356527850,1742616651837,-2322.4,0.00046575,120]
[356527851,1742616651846,-500.0,0.00046575,120]
[356527852,1742616651855,-500.0,0.00046575,120]
[356527853,1742616651864,-500.0,0.00046575,120]
[356527854,1742616651874,-950.54,0.00046575,120]
[356527855,1742616651883,-500.0,0.00046575,120]
[356527856,1742616651893,-510.20195455,0.00046575,120]
[356527857,1742616651902,-500.0,0.00046575,120]
[356527858,1742616651912,-1253.23,0.00046575,120]
[356527859,1742616651921,-500.0,0.00046575,120]
[356527860,1742616651930,-1302.85,0.00046575,120]
[356527861,1742616651939,-639.6,0.00046575,120]
[356527862,1742616651949,-1006.53,0.00046575,120]
[356527863,1742616651958,-500.0,0.00046575,120]
[356527864,1742616651967,-500.0,0.00046575,120]
[356527865,1742616651977,-2700.56,0.00046575,120]
[356527866,1742616651987,-500.0,0.00046575,120]
[356527867,1742616651996,-1504.9,0.00046575,120]
[356527868,1742616652005,-500.0,0.00046575,120]
[356527869,1742616652015,-947.64,0.00046575,120]
[356527870,1742616652024,-1914.26,0.00046575,120]
[356527871,1742616652033,-500.0,0.00046575,120]
[356527872,1742616652043,-500.0,0.00046575,120]
[356527873,1742616652052,-589.6,0.00046575,120]
[356527874,1742616652063,-1228.01,0.00046575,120]
[356527875,1742616652073,-500.0,0.00046575,120]
[356527876,1742616652082,-500.0,0.00046575,120]
[356527877,1742616652091,-7754.02,0.00046575,120]
[356527878,1742616652101,-1139.7,0.00046575,120]
[356527879,1742616652110,-151.0,0.00046575,14]
[356527880,1742616652119,-156.153449,0.00046575,14]
[356527881,1742616652129,-1177.05,0.00046575,120]
[356527882,1742616652138,-500.0,0.00046575,120]
[356527883,1742616652148,-588.2,0.00046575,120]
[356527884,1742616652157,-656.63,0.00046575,120]
[356527885,1742616652167,-1261.33,0.00046575,120]
[356527886,1742616652177,-500.0,0.00046575,120]
[356527887,1742616652186,-961.27,0.00046575,120]
[356527888,1742616652195,-4988.95,0.00046575,120]
[356527889,1742616652205,-500.0,0.00046575,120]
[356527890,1742616652214,-1323.62,0.00046575,120]
[356527891,1742616652224,-653.1,0.00046575,120]
[356527892,1742616652233,-500.0,0.00046575,120]
[356527893,1742616652242,-500.0,0.00046575,120]
[356527894,1742616652251,-690.63,0.00046575,120]
[356527895,1742616652261,-500.0,0.00046575,120]
[356527896,1742616652270,-2635.1,0.00046575,120]
[356527897,1742616652279,-500.0,0.00046575,120]
[356527898,1742616652289,-936.93,0.00046575,120]
[356527899,1742616652298,-1141.97,0.00046575,120]
[356527900,1742616652308,-1166.85,0.00046575,120]
[356527901,1742616652317,-500.0,0.00046575,120]
[356527902,1742616652327,-926.35,0.00046575,120]
[356527903,1742616652337,-2686.18,0.00046575,120]
[356527904,1742616652346,-1605.97,0.00046575,120]
[356527905,1742616652356,-500.0,0.00046575,120]
[356527906,1742616652366,-500.0,0.00046575,120]
[356527907,1742616652376,-500.0,0.00046575,120]
[356527908,1742616652386,-652.94,0.00046575,120]
[356527909,1742616652395,-500.0,0.00046575,120]
[356527910,1742616652405,-1177.51,0.00046575,120]
[356527911,1742616652415,-2139.69,0.00046575,120]
[356527912,1742616652424,-1322.59,0.00046575,120]
[356527913,1742616652434,-500.0,0.00046575,120]
[356527914,1742616652443,-599.54,0.00046575,120]
[356527915,1742616652452,-500.0,0.00046575,120]
[356527916,1742616652466,-635.53,0.00046575,120]
[356527917,1742616652475,-1328.2,0.00046575,120]
[356527918,1742616652485,-500.0,0.00046575,120]
[356527919,1742616652495,-980.75,0.00046575,120]
[356527920,1742616652506,-1645.79,0.00046575,120]
[356527921,1742616652516,-1918.26,0.00046575,120]
[356527922,1742616652525,-1545.07,0.00046575,120]
[356527923,1742616652536,-500.0,0.00046575,120]
[356527924,1742616652547,-500.0,0.00046575,120]
[356527925,1742616652556,-500.0,0.00046575,120]
[356527926,1742616652566,-2679.95,0.00046575,120]
[356527927,1742616652576,-2181.75,0.00046575,120]
[356527928,1742616652585,-500.0,0.00046575,120]
[356527929,1742616652594,-500.0,0.00046575,120]
[356527930,1742616652604,-2167.51,0.00046575,120]
[356527931,1742616652614,-591.35,0.00046575,120]
[356527932,1742616652623,-96.54215874,0.00046575,120]
[356527933,1742616653019,-531.61784126,0.00046575,120]
[356527934,1742616653029,-145.34414874,0.00046575,120]
[356527935,1742616653047,-354.65585126,0.00046575,120]
[356527936,1742616653059,-620.12784902,0.00046575,120]
[356527967,1742617832177,-159.62,0.00026849,2]
[356527969,1742617832187,-159.62,0.00039087,2]
[356527970,1742617832196,-151.55692717,0.00041,14]
[356527971,1742617832234,-5.44307283,0.00041,14]
[356527972,1742617832243,-375.06,0.00043679,2]
[356527973,1742617832252,-500.0,0.00044989,2]
[356527974,1742617832262,-247.49692717,0.00044989,2]
[356527975,1742617832273,-252.50307283,0.00044989,2]
[356527976,1742617832282,-244.84692717,0.00044989,2]
[356527977,1742617832294,-255.15307283,0.00044989,2]
[356527978,1742617832303,-202.97492717,0.00044989,2]
[356527979,1742617832322,-297.02507283,0.00044989,2]
[356527980,1742617832331,-62.16492117,0.00044989,2]
[356527981,1742617832452,-437.83507883,0.00044989,2]
[356527982,1742617832463,-500.0,0.00044989,2]
[356527983,1742617832474,-500.0,0.00044989,2]
[356527984,1742617832484,-500.0,0.00044989,2]
[356527985,1742617832494,-500.0,0.00044989,2]
[356527986,1742617832504,-500.0,0.00044989,2]
[356527987,1742617832513,-500.0,0.00044989,2]
[356527988,1742617832523,-500.0,0.00044989,2]
[356527989,1742617832533,-321.77562173,0.00044989,2]
[356528010,1742617840590,-178.22437827,0.00044989,2]
[356528011,1742617840599,-500.0,0.00044989,2]
[356528012,1742617840608,-500.0,0.00044989,2]
[356528013,1742617840617,-500.0,0.00044989,2]
[356528014,1742617840626,-500.0,0.00044989,2]
[356528015,1742617840635,-500.0,0.00044989,2]
[356528016,1742617840643,-327.45028398,0.00044989,2]
[356528017,1742617840669,-172.54971602,0.00044989,2]
[356528018,1742617840678,-500.0,0.00044989,2]
[356528019,1742617840687,-500.0,0.00044989,2]
[356528020,1742617840696,-500.0,0.00044989,2]
[356528021,1742617840705,-500.0,0.00044989,2]
[356528022,1742617840714,-500.0,0.00044989,2]
[356528023,1742617840723,-340.81997488,0.00044989,2]
[356528024,1742617840732,-55.82138799,0.00044989,2]
[356528025,1742617840756,-444.17861201,0.00044989,2]
[356528026,1742617840766,-464.62138799,0.00044989,2]
[356528046,1742617843309,-35.37861201,0.00044989,2]
[356528047,1742617843319,-500.0,0.00044989,2]
[356528048,1742617843329,-477.59174427,0.00044989,2]
[356528049,1742617843340,-22.40825573,0.00044989,2]
[356528050,1742617843349,-500.0,0.00044989,2]
[356528051,1742617843359,-500.0,0.00044989,2]
[356528052,1742617843368,-17.59164427,0.00044989,2]
[356528053,1742617843379,-271.92848716,0.00044989,2]
[356528054,1742617843395,-210.47986857,0.00044989,2]
[356528055,1742617843404,-500.0,0.00044989,2]
[356528056,1742617843413,-500.0,0.00044989,2]
[356528057,1742617843424,-500.0,0.00044989,2]
[356528058,1742617843433,-400.0,0.00044989,2]
[356528059,1742617843443,-500.0,0.00044989,2]
[356528060,1742617843452,-500.0,0.00044989,2]
[356528061,1742617843462,-500.0,0.00044989,2]
[356528062,1742617843471,-500.0,0.00044989,2]
[356528063,1742617843480,-500.0,0.00044989,2]
[356528064,1742617843490,-500.0,0.00044989,2]
[356528065,1742617843500,-500.0,0.00044989,2]
[356528066,1742617843509,-500.0,0.00044989,2]
[356528067,1742617843519,-4950.55009492,0.0004499,3]
[356528068,1742617843530,-3797.68104727,0.0004499,3]
[356528069,1742617843550,-3001.67,0.0004499,3]
[356528070,1742617843565,-1795.66259684,0.0004499,3]
[356528118,1742617844494,-331.40167,0.0004499,3]
[356528129,1742617846205,-207.03082725,0.000449,10]
[356528132,1742617846215,-924.87105184,0.0004499,3]
[356528165,1742617846525,-599.38775637,0.0004499,3]
[356528218,1742619037349,-164.09,0.00026849,2]
[356528219,1742619037358,-158.0,0.00041,14]
[356528220,1742619037368,-21.44394244,0.00042,120]
[356528221,1742619037456,-369.89124401,0.00042,120]
[356528222,1742619037468,-506.66481355,0.00042,120]
[356528223,1742619037477,-392.66,0.00042472,2]
[356528224,1742619037486,-150.0,0.0004371,2]
[356528225,1742619037495,-338.05395599,0.00043883,2]
[356528226,1742619037505,-1294.76,0.00043963,2]
[356528227,1742619037514,-186.32,0.00043983,120]
[356528228,1742619037522,-1000.0,0.00044061,2]
[356528229,1742619037531,-388.13,0.00044133,2]
[356528230,1742619037540,-250.0,0.00044353,2]
[356528231,1742619037549,-158.9,0.00044424,2]
[356528232,1742619037557,-392.66,0.00044735,2]
[356528233,1742619037567,-7500.0,0.000448,2]
[356528234,1742619037575,-158.9,0.00044868,2]
[356528235,1742619037584,-150.0,0.00044878,2]
[356528236,1742619037593,-207.03082725,0.000449,10]
[356528237,1742619037602,-951.79894691,0.000449,2]
[356528238,1742619037624,-665.79700321,0.000449,2]
[356528239,1742619037635,-1762.10743291,0.000449,2]
[356528240,1742619037646,-1887.54303387,0.000449,2]
[356528241,1742619037658,-2232.7535831,0.000449,2]
[356528242,1742619037667,-434.75572709,0.00044917,15]
[356528243,1742619037676,-621.20265028,0.00044917,17]
[356528244,1742619037686,-150.37421481,0.0004492,15]
[356528245,1742619037694,-500.86944491,0.00044973,2]
[356528246,1742619037703,-219.99377727,0.0004498,2]
[356528247,1742619037713,-150.0,0.00044986,30]
[356528248,1742619037722,-150.0,0.00044986,30]
[356528249,1742619037731,-150.0,0.00044986,30]
[356528250,1742619037740,-150.0,0.00044986,30]
[356528251,1742619037749,-157.82683684,0.00044989,72]
[356528252,1742619037758,-500.0,0.00044989,2]
[356528253,1742619037767,-500.0,0.00044989,2]
[356528254,1742619037776,-500.0,0.00044989,2]
[356528255,1742619037785,-500.0,0.00044989,2]
[356528256,1742619037794,-500.0,0.00044989,2]
[356528257,1742619037803,-500.0,0.00044989,2]
[356528258,1742619037812,-500.0,0.00044989,2]
[356528259,1742619037821,-622.2015482,0.00044989,2]
[356528260,1742619037830,-150.0,0.00044989,4]
[356528261,1742619037839,-361.68319098,0.00044989,120]
[356528262,1742619037848,-268.44969574,0.00044989,38]
[356528263,1742619037857,-3216.2786792,0.0004499,38]
[356528269,1742619039479,-911.93905103,0.0004499,38]
[356528270,1742619039491,-5101.48742585,0.0004499,38]
[356528271,1742619039606,-8723.28319486,0.0004499,38]
[356528272,1742619039749,-367.03000001,0.0004499,38]
[356528273,1742619039805,-994.8,0.0004499,38]
[356528287,1742619042712,-4058.2309764,0.000447,2]
[356528335,1742620231631,-269.4,0.00026849,2]
[356528336,1742620231641,-540.78774977,0.00039781,7]
[356528337,1742620231652,-182.27227931,0.00039781,7]
[356528338,1742620231662,-6780.25870386,0.0004,120]
[356528339,1742620231674,-1023.52500493,0.0004,120]
[356528340,1742620231685,-983.94936565,0.0004,120]
[356528341,1742620231703,-1212.26692556,0.0004,120]
[356528342,1742620231720,-500.0,0.00041658,120]
[356528343,1742620231730,-176.55255507,0.00042081,2]
[356528344,1742620231739,-524.6081351,0.00042171,2]
[356528345,1742620231751,-302.0,0.00042171,2]
[356528346,1742620231762,-2956.90267742,0.00042171,2]
[356528347,1742620231771,-624.45690667,0.0004218,2]
[356528348,1742620231782,-308.92827939,0.00042181,120]
[356528349,1742620231795,-384.26,0.00042181,120]
[356528350,1742620231810,-254.89,0.00042181,120]
[356528351,1742620231865,-473.03870723,0.00042181,120]
[356528407,1742620237529,-4850.43578301,0.00042181,12]
[356528408,1742620237582,-717.33266096,0.00042181,12]
[356528409,1742620237594,-378.00513087,0.00042181,12]
[356528410,1742620237692,-1324.67694471,0.00042181,12]
[356528411,1742620237749,-2912.48,0.00042181,12]
[356528412,1742620237804,-1144.63046961,0.00042181,12]
[356528413,1742620237816,-3600.0,0.00042181,12]
[356528416,1742620239681,-1299.38449386,0.00042181,12]
[356528417,1742620239692,-2592.4346909,0.00042181,12]
[356528418,1742620239705,-2276.90767204,0.00042181,12]
[356528419,1742620239792,-413.15347707,0.00042181,12]
[356528420,1742620239850,-1184.39619311,0.00042181,12]
[356528421,1742620239861,-1714.05964372,0.00042181,12]
[356528422,1742620239874,-9291.12151354,0.00042181,12]
[356528423,1742620239883,-7932.34214625,0.00042181,120]
[356528424,1742620239899,-4470.272925,0.00042181,120]
[356528425,1742620239967,-330.49179564,0.00042181,120]
[356528426,1742620239979,-1856.46036361,0.00042181,120]
[356528427,1742620239990,-572.17368911,0.00042181,120]
[356528428,1742620240025,-452.89181797,0.00042181,120]
[356528429,1742620240084,-4328.65724703,0.00042181,120]
[356528430,1742620240095,-871.02845085,0.00042181,120]
[356528431,1742620240140,-4000.39879996,0.00042181,120]
[356528432,1742620240151,-2840.4373202,0.00042181,120]
[356528495,1742621160240,6098.30460225,8e-05,2]
[356528511,1742621284688,150.0,0.0002,2]
[356528530,1742621437801,-158.78,0.00026849,2]
[356528531,1742621437811,-250.0,0.00031,2]
[356528532,1742621437820,-115.515,0.00040616,2]
[356528533,1742621437939,-43.265,0.00040616,2]
[356528534,1742621437948,-376.96,0.00041612,2]
[356528535,1742621437957,-236.0,0.00041759,5]
[356528536,1742621437966,-2161.49470318,0.0004176,2]
[356528569,1742621440048,-281.61309658,0.0004176,2]
[356528570,1742621440059,-3907.64969985,0.0004176,2]
[356528571,1742621440224,-3937.23853954,0.0004176,2]
[356528572,1742621440233,-571.35174392,0.000418,2]
[356528573,1742621440242,-207.03082725,0.000419,9]
[356528574,1742621440251,-7365.41,0.00042,120]
[356528575,1742621440260,-1298.71,0.000421,120]
[356528576,1742621440269,-939.46206958,0.00042171,2]
[356528577,1742621440278,-1492.16917763,0.00042175,120]
[356528578,1742621440291,-150.0,0.0004218,4]
[356528579,1742621440300,-52516.02845776,0.00042181,120]
[356528580,1742621440309,-5000.0,0.00043,120]
[356528581,1742621440318,-150.0,0.00043217,2]
[356528582,1742621440327,-172.03,0.00043255,2]
[356528583,1742621440338,-346.02,0.00043256,30]
[356528584,1742621440347,-346.02,0.00043256,30]
[356528585,1742621440356,-346.02,0.00043256,30]
[356528586,1742621440367,-346.02,0.00043256,30]
[356528587,1742621440375,-1000.0,0.00043261,2]
[356528588,1742621440384,-411.97156954,0.00043355,2]
[356528589,1742621440393,-358.74,0.00043356,30]
[356528590,1742621440402,-442.27,0.00043356,30]
[356528592,1742621440411,-151.15,0.00043356,30]
[356528594,1742621440420,-346.02,0.00043356,30]
[356528596,1742621440429,-442.27,0.00043356,30]
[356528598,1742621440439,-346.02,0.00043356,30]
[356528600,1742621440447,-361.24,0.00043356,30]
[356528602,1742621440458,-346.02,0.00043356,30]
[356528604,1742621440467,-2000.0,0.00043367,120]
[356528606,1742621440476,-186.32,0.00043527,120]
[356528608,1742621440484,-666.6,0.00043556,2]
[356528640,1742621440703,-851.94,0.00043561,2]
[356528641,1742621440730,-1000.0,0.000436,7]
[356528642,1742621440739,-250.0,0.00043616,2]
[356528643,1742621440749,-376.96,0.00043876,2]
[356528644,1742621440758,-153.09,0.00043991,2]
[356528645,1742621440767,-153.09,0.00044101,2]
[356528646,1742621440776,-153.09,0.0004421,2]
[356528648,1742621440785,-153.09,0.0004432,2]
[356528649,1742621440794,-150.0,0.00044372,2]
[356528650,1742621440803,-153.09,0.0004443,2]
[356528651,1742621440812,-16849.5093367,0.00044539,38]
[356528652,1742621440821,-480.3403,0.00044539,14]
[356528654,1742621440830,-480.3403,0.00044539,14]
[356528655,1742621440840,-151.0,0.00044539,14]
[356528656,1742621440849,-151.0,0.00044539,14]
[356528657,1742621440858,-297.809635,0.00044539,14]
[356528658,1742621440867,-153.179338,0.00044539,14]
[356528659,1742621440876,-153.09,0.0004454,2]
[356528660,1742621440886,-153.09,0.0004465,2]
[356528661,1742621440895,-195.998689,0.00044698,14]
[356528662,1742621440904,-4047.62848394,0.00044698,120]
[356528663,1742621440913,-3441.7690236,0.000447,2]
[356528664,1742621440923,-7345.0,0.000447,2]
[356528665,1742621440932,-10000.0,0.000447,120]
[356528666,1742621440941,-480.3403,0.000447,14]
[356528667,1742621440950,-480.3403,0.000447,14]
[356528668,1742621440959,-480.3403,0.000447,14]
[356528669,1742621440968,-480.3403,0.000447,14]
[356528670,1742621440977,-151.0,0.000447,14]
[356528671,1742621440986,-151.0,0.000447,14]
[356528672,1742621440995,-151.0,0.000447,14]
[356528673,1742621441004,-151.0,0.000447,14]
[356528674,1742621441014,-153.09,0.0004476,2]
[356528675,1742621441023,-153.09,0.0004487,2]
[356528676,1742621441032,-188.41,0.00044883,2]
[356528677,1742621441041,-391.28015439,0.0004489,15]
[356528678,1742621441051,-150.37421475,0.000449,15]
[356528679,1742621441060,-651.06007484,0.000449,17]
[356528680,1742621441069,-352.8951353,0.000449,120]
[356528681,1742621441078,-153.09,0.0004498,2]
[356528682,1742621441087,-150.0,0.00044986,30]
[356528683,1742621441097,-150.0,0.00044986,30]
[356528684,1742621441106,-150.0,0.00044986,30]
[356528685,1742621441115,-150.0,0.00044986,30]
[356528686,1742621441124,-1000.0,0.00044989,120]
[356528687,1742621441133,-348.7575,0.00044989,120]
[356528688,1742621441143,-4267.43966961,0.0004499,40]
[356528689,1742621441152,-68687.7729524,0.0004499,3]
[356528690,1742621441161,-480.3403,0.0004499,14]
[356528691,1742621441170,-480.3403,0.0004499,14]
[356528692,1742621441182,-151.0,0.0004499,14]
[356528693,1742621441193,-151.0,0.0004499,14]
[356528694,1742621441202,-215.935389,0.0004499,14]
[356528695,1742621441212,-189.729734,0.0004499,120]
[356528696,1742621441221,-1000.0,0.00044999,120]
[356528697,1742621441231,-1000.0,0.00044999,120]
[356528698,1742621441240,-253.17823368,0.00044999,120]
[356528699,1742621441250,-293.1202613,0.00045,120]
[356528700,1742621441259,-83755.43964813,0.00045,3]
[356528701,1742621441628,-1692.30000002,0.00045,3]
[356528710,1742621442856,-500.11699597,0.00044463,7]
[356528761,1742622632065,-164.09,0.00026849,2]
[356528762,1742622632074,-339.26,0.00042209,2]
[356528763,1742622632083,-607.0,0.00043562,2]
[356528764,1742622632093,-150.0,0.00043883,2]
[356528765,1742622632103,-329.97183,0.00043908,2]
[356528766,1742622632112,-1000.0,0.00043982,2]
[356528767,1742622632122,-772.25,0.00043995,2]
[356528768,1742622632131,-158.09,0.00044048,2]
[356528769,1742622632141,-250.0,0.00044129,2]
[356528770,1742622632150,-904.88300403,0.00044463,7]
[356528771,1742622632161,-339.26,0.00044473,2]
[356528772,1742622632170,-158.09,0.00044635,2]
[356528773,1742622632179,-150.37421475,0.000449,15]
[356528774,1742622632188,-207.03082725,0.000449,10]
[356528775,1742622632198,-352.15213896,0.000449,15]
[356528776,1742622632207,-335.25037863,0.000449,120]
[356528777,1742622632216,-150.0,0.00044986,30]
[356528778,1742622632225,-150.0,0.00044986,30]
[356528779,1742622632235,-150.0,0.00044986,30]
[356528780,1742622632246,-150.0,0.00044986,30]
[356528781,1742622632256,-1000.0,0.0004499,10]
[356528782,1742622632266,-771.0,0.0004499,10]
[356528783,1742622632276,-1000.0,0.0004499,15]
[356528784,1742622632288,-1000.0,0.0004499,7]
[356528785,1742622632298,-1000.0,0.0004499,8]
[356528786,1742622632307,-1006.0,0.0004499,10]
[356528787,1742622632316,-1000.0,0.0004499,12]
[356528788,1742622632326,-1002.0,0.0004499,12]
[356528789,1742622632335,-3261.1033742,0.00044995,2]
[356528790,1742622632345,-1013.0,0.00044999,10]
[356528791,1742622632355,-1000.0,0.00044999,120]
[356528792,1742622632364,-1000.0,0.00044999,120]
[356528793,1742622632373,-345.125,0.00044999,120]
[356528794,1742622632383,-8424.75466835,0.00045,38]
[356528795,1742622632393,-369798.55062675,0.00045,3]
[356528796,1742622632403,-10000.0,0.00045,120]
[356528797,1742622632413,-5000.0,0.00045,120]
[356528798,1742622632422,-152.36420071,0.00045,10]
[356528799,1742622632431,-152.05423445,0.00045,10]
[356528800,1742622632441,-150.0,0.00045047,30]
[356528801,1742622632450,-150.0,0.00045055,2]
[356528802,1742622632460,-150.0,0.00045068,30]
[356528803,1742622632470,-153.09,0.0004509,2]
[356528804,1742622632479,-150.0,0.00045107,30]
[356528805,1742622632489,-607.65606986,0.00045122,17]
[356528806,1742622632499,-150.0,0.00045149,30]
[356528807,1742622632508,-150.0,0.00045167,30]
[356528808,1742622632517,-150.0,0.00045175,30]
[356528809,1742622632527,-153.09,0.000452,2]
[356528810,1742622632537,-564.18,0.00045205,30]
[356528811,1742622632546,-158.09,0.00045222,2]
[356528812,1742622632556,-150.0,0.00045227,30]
[356528813,1742622632565,-150.0,0.00045231,30]
[356528814,1742622632574,-352.15213891,0.00045258,15]
[356528815,1742622632583,-150.0,0.00045288,30]
[356528816,1742622632593,-153.09,0.0004531,2]
[356528817,1742622632603,-150.0,0.00045312,30]
[356528818,1742622632613,-150.0,0.00045348,30]
[356528819,1742622632624,-150.37421475,0.0004536,15]
[356528820,1742622632634,-150.0,0.00045363,30]
[356528821,1742622632643,-150.0,0.00045394,30]
[356528822,1742622632654,-150.0,0.00045408,30]
[356528823,1742622632664,-690.25,0.0004541,120]
[356528824,1742622632674,-153.09,0.0004542,2]
[356528825,1742622632683,-150.0,0.00045468,30]
[356528827,1742622632692,-150.0,0.00045475,30]
[356528828,1742622632703,-150.0,0.00045529,30]
[356528830,1742622632712,-153.09,0.0004553,2]
[356528832,1742622632722,-150.0,0.00045551,30]
[356528835,1742622632731,-150.0,0.00045556,30]
[356528837,1742622632741,-3024.69170759,0.00045563,120]
[356528839,1742622632751,-150.0,0.00045589,30]
[356528841,1742622632760,-352.15213891,0.00045615,15]
[356528842,1742622632771,-150.0,0.00045638,30]
[356528844,1742622632782,-153.09,0.0004564,2]
[356528847,1742622632791,-150.0,0.00045649,30]
[356528848,1742622632800,-150.0,0.0004571,30]
[356528851,1742622632811,-150.0,0.00045719,30]
[356528852,1742622632820,-150.0,0.0004574,30]
[356528854,1742622632829,-153.09,0.0004575,2]
[356528856,1742622632839,-150.0,0.0004577,30]
[356528858,1742622632848,-1000.0,0.000458,120]
[356528860,1742622632859,-150.0,0.00045801,30]
[356528862,1742622632868,-158.09,0.0004581,2]
[356528864,1742622632878,-150.37421475,0.0004582,15]
[356528867,1742622632888,-1035.375,0.00045821,120]
[356528869,1742622632898,-150.0,0.0004583,30]
[356528871,1742622632908,-517.803,0.0004585,2]
[356528873,1742622632918,-2043.572,0.0004585,2]
[356528875,1742622632927,-1281.0,0.0004585,2]
[356528877,1742622632936,-1426.943,0.0004585,2]
[356528878,1742622632945,-1272.0,0.0004585,2]
[356528880,1742622632954,-787.0,0.0004585,2]
[356528883,1742622632964,-4098.418,0.0004585,2]
[356528884,1742622632973,-1434.488,0.0004585,2]
[356528886,1742622632982,-542.0,0.0004585,2]
[356528887,1742622632991,-908.398,0.0004585,2]
[356528888,1742622633000,-3939.0,0.0004585,2]
[356528889,1742622633009,-151.0,0.0004585,2]
[356528890,1742622633018,-1161.002,0.0004585,2]
[356528891,1742622633027,-150.0,0.00045882,30]
[356528892,1742622633036,-150.0,0.0004589,30]
[356528893,1742622633046,-150.0,0.00045928,30]
[356528894,1742622633055,-150.0,0.00045951,30]
[356528895,1742622633064,-150.0,0.00045964,30]
[356528896,1742622633073,-352.15213891,0.00045973,15]
[356528897,1742622633082,-1000.0,0.00046009,120]
[356528898,1742622633092,-150.0,0.00046011,30]
[356528899,1742622633101,-288.20418,0.00046027,14]
[356528900,1742622633111,-151.0,0.00046027,14]
[356528901,1742622633120,-288.20418,0.00046027,14]
[356528902,1742622633129,-14168.0,0.00046027,120]
[356528903,1742622633139,-150.0,0.00046045,30]
[356528904,1742622633148,-150.0,0.00046071,30]
[356528905,1742622633158,-1012.0,0.000461,120]
[356528906,1742622633167,-150.0,0.00046116,30]
[356528907,1742622633176,-150.0,0.00046127,30]
[356528908,1742622633185,-150.0,0.00046132,30]
[356528909,1742622633194,-150.0,0.00046181,2]
[356528910,1742622633203,-150.0,0.00046192,30]
[356528911,1742622633213,-150.0,0.00046203,2]
[356528912,1742622633222,-1191.0,0.00046207,7]
[356528913,1742622633231,-150.0,0.00046208,30]
[356528914,1742622633241,-150.0,0.00046219,2]
[356528915,1742622633250,-150.0,0.00046227,2]
[356528916,1742622633259,-1380.5,0.00046232,120]
[356528917,1742622633269,-150.0,0.00046232,2]
[356528918,1742622633278,-150.0,0.00046252,30]
[356528919,1742622633289,-150.0,0.00046275,2]